fUSD/lending_fUSD_20251118
["ID","MTS","AMOUNT","RATE_DAILY","PERIOD"]
[394347606,1763478807953,-1000.0,0.00041682,120]
[394347607,1763478807989,-1000.0,0.00041682,120]
[394347608,1763478808020,-1000.0,0.00041682,120]
[394347609,1763478808054,-1000.0,0.00041682,120]
[394347610,1763478808090,-1000.0,0.00041682,120]
[394347611,1763478808134,-1000.0,0.00041682,120]
[394347612,1763478808167,-1000.0,0.00041682,120]
[394347613,1763478808197,-1000.0,0.00041682,120]
[394347614,1763478808226,-1000.0,0.00041682,120]
[394347615,1763478808259,-1000.0,0.00041682,120]
[394347616,1763478808288,-1000.0,0.00041682,120]
[394347617,1763478808318,-282.834,0.00041682,120]
[394347618,1763478808351,-286.0,0.00041683,30]
[394347619,1763478808380,-150.0,0.00041683,30]
[394347620,1763478808412,-3014.0,0.00041684,120]
[394347621,1763478808443,-3000.0,0.00041684,30]
[394347622,1763478808474,-740.9833205,0.00041686,30]
[394347623,1763478808503,-3000.0,0.00041686,120]
[394347624,1763478808537,-572.0,0.00041687,30]
[394347625,1763478808567,-10000.0,0.00041688,30]
[394347626,1763478808600,-423.33,0.00041689,30]
[394347627,1763478808630,-639.166393,0.0004169,60]
[394347628,1763478808660,-10000.0,0.00041691,30]
[394347629,1763478808688,-8720.0,0.00041691,30]
[394347630,1763478808717,-1082.0,0.00041691,30]
[394347631,1763478808746,-431.8,0.000417,60]
[394347632,1763478808775,-1578.45,0.00041717,30]
[394347633,1763478808809,-4735.35,0.00041717,30]
[394347634,1763478808842,-1799302.21085433,0.00041719,120]
[394347635,1763478814032,-252.4859067,0.000372,120]
[394347636,1763478814067,-12499.99,0.0004,120]
[394347637,1763478814101,-12500.0,0.0004,120]
[394347638,1763478814135,-12500.0,0.0004025,120]
[394347639,1763478814167,-666.0,0.000403,30]
[394347640,1763478814216,-474.450222,0.0004157,30]
[394347641,1763478814247,-188.70561,0.0004157,120]
[394347642,1763478814280,-188.70561,0.0004157,120]
[394347643,1763478814310,-188.70561,0.0004157,120]
[394347644,1763478814339,-200.0,0.00041571,120]
[394347645,1763478814372,-305.40435332,0.00041632,107]
[394347646,1763478814419,-474.450222,0.00041633,30]
[394347647,1763478814449,-188.70561,0.00041633,120]
[394347648,1763478814482,-474.450222,0.00041633,30]
[394347649,1763478814513,-188.70561,0.00041633,120]
[394347650,1763478814545,-474.450222,0.00041633,30]
[394347651,1763478814576,-188.70561,0.00041633,120]
[394347652,1763478814609,-474.450215,0.00041633,30]
[394347653,1763478814640,-188.70561,0.00041633,120]
[394347654,1763478814672,-188.70561,0.00041633,120]
[394347655,1763478814703,-188.70561,0.00041633,120]
[394347656,1763478814734,-500.0,0.00041633,120]
[394347657,1763478814766,-188.70561,0.00041633,120]
[394347658,1763478814796,-188.70561,0.00041633,120]
[394347659,1763478814827,-188.70561,0.00041633,120]
[394347660,1763478814860,-188.70561,0.00041633,120]
[394347661,1763478814893,-188.70561,0.00041633,120]
[394347662,1763478814927,-188.705606,0.00041633,120]
[394347663,1763478814961,-272.66079,0.00041633,120]
[394347664,1763478814994,-272.66079,0.00041633,120]
[394347665,1763478815026,-272.66079,0.00041633,120]
[394347666,1763478815056,-272.66079,0.00041633,120]
[394347667,1763478815087,-272.66079,0.00041633,120]
[394347668,1763478815120,-272.66079,0.00041633,120]
[394347669,1763478815151,-272.66079,0.00041633,120]
[394347670,1763478815182,-151.0,0.00041633,120]
[394347671,1763478815213,-272.66079,0.00041633,120]
[394347672,1763478815244,-272.66079,0.00041633,120]
[394347673,1763478815275,-151.0,0.00041633,120]
[394347674,1763478815305,-151.0,0.00041633,120]
[394347675,1763478815335,-272.66079,0.00041633,120]
[394347676,1763478815366,-151.0,0.00041633,120]
[394347677,1763478815396,-272.66079,0.00041633,120]
[394347678,1763478815427,-151.0,0.00041633,120]
[394347679,1763478815457,-272.66079,0.00041633,120]
[394347680,1763478815488,-272.66079,0.00041633,120]
[394347681,1763478815518,-151.0,0.00041633,120]
[394347682,1763478815549,-272.66079,0.00041633,120]
[394347683,1763478815579,-151.0,0.00041633,120]
[394347684,1763478815608,-272.66079,0.00041633,120]
[394347685,1763478815639,-272.66079,0.00041633,120]
[394347686,1763478815669,-272.66079,0.00041633,120]
[394347687,1763478815699,-272.66079,0.00041633,120]
[394347688,1763478815729,-151.0,0.00041633,120]
[394347689,1763478815760,-272.66079,0.00041633,120]
[394347690,1763478815791,-272.66079,0.00041633,120]
[394347691,1763478815822,-281.758994,0.00041633,120]
[394347692,1763478815860,-1401.2,0.00041644,30]
[394347693,1763478815894,-550.38,0.00041671,30]
[394347694,1763478815930,-2712418.57310518,0.00041719,120]
[394347695,1763478815965,-2234060.1565918,0.00041719,120]
[394347696,1763478820977,-765.76685859,0.000409,120]
[394347697,1763478821036,-2277660.62736771,0.00041719,120]
[394347698,1763478821066,-500.0,0.0004179,30]
[394347699,1763478821099,-25000.0,0.00041863,120]
[394347700,1763478821135,-500.0,0.00041907,120]
[394347701,1763478821168,-500.0,0.00041952,30]
[394347702,1763478821198,-226.32930022,0.00041999,120]
[394347703,1763478821228,-300.0,0.00042,120]
[394347704,1763478821257,-1000.0,0.00042,120]
[394347705,1763478821286,-1082.0,0.00042108,30]
[394347706,1763478821315,-500.0,0.00042181,120]
[394347707,1763478821346,-500.0,0.00042266,30]
[394347708,1763478821379,-796.34744939,0.0004245,30]
[394347709,1763478821411,-428.3,0.00042455,120]
[394347710,1763478821442,-761.0,0.000425,120]
[394347711,1763478821472,-1082.0,0.00042525,30]
[394347712,1763478821502,-2923.66,0.000426,30]
[394347713,1763478821534,-636.45717416,0.00042849,30]
[394347714,1763478821565,-500.0,0.00042896,30]
[394347715,1763478821595,-1082.0,0.00042942,30]
[394347716,1763478821627,-152.9295393,0.00043,120]
[394347717,1763478821665,-1839.93640713,0.00043,120]
[394347718,1763478821696,-246.03,0.00043,30]
[394347719,1763478821727,-150.0,0.00043067,120]
[394347720,1763478821757,-1065.96795735,0.000431,120]
[394347721,1763478821789,-500.0,0.00043144,30]
[394347722,1763478821819,-87126.0479,0.0004322,30]
[394347723,1763478821851,-500.0,0.00043346,30]
[394347724,1763478821886,-519.74264212,0.00043409,30]
[394347725,1763478821917,-287.88,0.00043444,30]
[394347726,1763478821947,-150.0,0.00043444,30]
[394347727,1763478821977,-150.0,0.00043444,30]
[394347728,1763478822008,-150.0,0.00043444,30]
[394347729,1763478822039,-150.0,0.00043444,30]
[394347730,1763478822071,-150.0,0.00043444,30]
[394347731,1763478822109,-150.0,0.00043444,30]
[394347732,1763478822141,-150.0,0.00043444,30]
[394347733,1763478822173,-307.9,0.00043498,30]
[394347734,1763478822205,-2923.66,0.000437,30]
[394347735,1763478822235,-1102.38157404,0.00043756,30]
[394347736,1763478822263,-260.0,0.000438,120]
[394347737,1763478822291,-1295.41,0.000438,60]
[394347738,1763478822321,-1327.44,0.00043835,30]
[394347739,1763478822352,-1774.84,0.00043835,120]
[394347740,1763478822384,-1166.9,0.00043835,120]
[394347741,1763478822415,-813.56,0.00043835,120]
[394347742,1763478822446,-1496.17,0.00043835,120]
[394347743,1763478822479,-1955.72,0.00043835,120]
[394347744,1763478822510,-543.42,0.00043835,120]
[394347745,1763478822540,-1345.77,0.00043835,120]
[394347746,1763478822572,-1392.83,0.00043862,120]
[394347747,1763478822608,-537.2,0.00043862,120]
[394347748,1763478822637,-500.0,0.00043896,30]
[394347749,1763478822668,-1000.0,0.00043988,30]
[394347750,1763478822698,-277.94,0.00044,120]
[394347751,1763478822730,-25000.0,0.00044,120]
[394347752,1763478822761,-153.0,0.00044,120]
[394347753,1763478822792,-151.0,0.00044,120]
[394347754,1763478822824,-300.0,0.00044,120]
[394347755,1763478822855,-1134.40213463,0.00044,120]
[394347756,1763478822888,-548.275111,0.00044,57]
[394347757,1763478822922,-1327.44,0.00044109,30]
[394347758,1763478822957,-1774.84,0.00044109,120]
[394347759,1763478822990,-1166.9,0.00044109,120]
[394347760,1763478823023,-813.56,0.00044109,120]
[394347761,1763478823057,-1496.17,0.00044109,120]
[394347762,1763478823090,-1955.72,0.00044109,120]
[394347763,1763478823125,-543.42,0.00044109,120]
[394347764,1763478823161,-1345.77,0.00044109,120]
[394347765,1763478823192,-510.76969206,0.00044134,30]
[394347766,1763478823226,-1392.83,0.00044136,120]
[394347767,1763478823263,-537.2,0.00044136,120]
[394347768,1763478823297,-201.02,0.000443,30]
[394347769,1763478823329,-520.61335823,0.000443,120]
[394347770,1763478823367,-1327.44,0.00044383,30]
[394347771,1763478823403,-1774.84,0.00044383,120]
[394347772,1763478823436,-1166.9,0.00044383,120]
[394347773,1763478823468,-813.56,0.00044383,120]
[394347774,1763478823500,-1496.17,0.00044383,120]
[394347775,1763478823531,-1955.72,0.00044383,120]
[394347776,1763478823561,-543.42,0.00044383,120]
[394347777,1763478823592,-1345.77,0.00044383,120]
[394347778,1763478823628,-1392.83,0.0004441,120]
[394347779,1763478823661,-537.2,0.0004441,120]
[394347780,1763478823697,-1586.63288295,0.0004444,120]
[394347781,1763478823730,-153.0,0.000445,120]
[394347782,1763478823760,-527.89601545,0.00044647,30]
[394347783,1763478823792,-1327.63266199,0.00044657,30]
[394347784,1763478823826,-1774.95,0.00044657,120]
[394347785,1763478823860,-1167.06,0.00044657,120]
[394347786,1763478823892,-813.67,0.00044657,120]
[394347787,1763478823926,-1496.25000001,0.00044657,120]
[394347788,1763478824117,-1955.75,0.00044657,120]
[394347789,1763478824149,-543.5,0.00044657,120]
[394347790,1763478824183,-1345.87,0.00044657,120]
[394347791,1763478824216,-1392.83,0.00044684,120]
[394347792,1763478824249,-537.2,0.00044684,120]
[394347793,1763478824279,-151.0,0.000447,120]
[394347794,1763478824308,-973.38423224,0.00044757,30]
[394347795,1763478824337,-1947.99637741,0.000448,120]
[394347796,1763478824366,-2923.66,0.000448,30]
[394347797,1763478824401,-1312.34,0.00044848,120]
[394347798,1763478824436,-150.0,0.00044954,120]
[394347799,1763478824471,-1392.83,0.00044958,120]
[394347800,1763478824505,-537.2,0.00044958,120]
[394347801,1763478824536,-199.999999,0.00045,120]
[394347802,1763478824568,-217.18896917,0.00045,120]
[394347803,1763478824597,-25000.0,0.00045,120]
[394347804,1763478824628,-1000.0,0.00045,30]
[394347805,1763478824657,-1000.0,0.00045,30]
[394347806,1763478824691,-1000.0,0.00045,30]
[394347807,1763478824720,-1000.0,0.00045,30]
[394347808,1763478824750,-1000.0,0.00045,30]
[394347809,1763478824780,-1000.0,0.00045,30]
[394347810,1763478824811,-1000.0,0.00045,30]
[394347811,1763478824841,-1000.0,0.00045,30]
[394347812,1763478824873,-1000.0,0.00045,30]
[394347813,1763478824906,-1000.0,0.00045,30]
[394347814,1763478824937,-1000.0,0.00045,30]
[394347815,1763478824971,-1000.0,0.00045,30]
[394347816,1763478825005,-1000.0,0.00045,30]
[394347817,1763478825036,-1000.0,0.00045,30]
[394347818,1763478825068,-1000.0,0.00045,30]
[394347819,1763478825100,-1000.0,0.00045,30]
[394347820,1763478825135,-1000.0,0.00045,30]
[394347821,1763478825167,-1000.0,0.00045,30]
[394347822,1763478825198,-1000.0,0.00045,30]
[394347823,1763478825228,-1000.0,0.00045,30]
[394347824,1763478825275,-1000.0,0.00045,30]
[394347825,1763478825311,-1000.0,0.00045,30]
[394347826,1763478825344,-1000.0,0.00045,30]
[394347827,1763478825381,-1000.0,0.00045,30]
[394347828,1763478825412,-1000.0,0.00045,30]
[394347829,1763478825446,-1000.0,0.00045,30]
[394347830,1763478825479,-1000.0,0.00045,30]
[394347831,1763478825514,-1000.0,0.00045,30]
[394347832,1763478825545,-1000.0,0.00045,30]
[394347833,1763478825576,-1000.0,0.00045,30]
[394347834,1763478825607,-1000.0,0.00045,30]
[394347835,1763478825646,-1000.0,0.00045,30]
[394347836,1763478825681,-505.39,0.00045,30]
[394347837,1763478825713,-164.6262856,0.00045,120]
[394347838,1763478825745,-172.78584362,0.00045,120]
[394347839,1763478825778,-150.08602058,0.00045,120]
[394347840,1763478825811,-221.8,0.00045,120]
[394347841,1763478825844,-258.42,0.00045,120]
[394347842,1763478825883,-1001.08204342,0.00045,120]
[394347843,1763478825915,-150.0,0.00045,120]
[394347844,1763478825947,-420.0,0.00045,120]
[394347845,1763478825981,-150.0,0.00045,120]
[394347846,1763478826014,-300.0,0.00045078,120]
[394347847,1763478826049,-153.0,0.000451,120]
[394347848,1763478826083,-150.0,0.00045106,120]
[394347849,1763478826118,-150.0,0.00045178,120]
[394347850,1763478826149,-172.82183757,0.00045178,120]
[394347851,1763478826183,-1392.83,0.00045232,120]
[394347852,1763478826219,-537.2,0.00045232,120]
[394347853,1763478826250,-185.95868944,0.00045356,30]
[394347854,1763478826279,-151.0,0.000454,120]
[394347855,1763478826310,-350.0,0.00045479,120]
[394347856,1763478826342,-151.0,0.00045479,60]
[394347857,1763478826373,-151.0,0.00045479,60]
[394347858,1763478826405,-151.0,0.00045479,60]
[394347859,1763478826438,-275.110495,0.00045479,60]
[394347860,1763478826467,-284.82133361,0.000455,120]
[394347861,1763478826502,-1392.83,0.00045506,120]
[394347862,1763478826538,-537.2,0.00045506,120]
[394347863,1763478826570,-153.0,0.000456,120]
[394347864,1763478826599,-420.0,0.00045639,30]
[394347865,1763478826631,-3466.17517,0.00045639,30]
[394347866,1763478826661,-420.0,0.00045753,30]
[394347867,1763478826696,-1392.83,0.0004578,120]
[394347868,1763478826730,-537.2,0.0004578,120]
[394347869,1763478826761,-420.0,0.00045867,30]
[394347870,1763478826790,-420.0,0.00045981,30]
[394347871,1763478826819,-25000.0,0.00046,120]
[394347872,1763478826852,-200.0,0.00046,120]
[394347873,1763478826886,-278.95139981,0.00046,120]
[394347874,1763478826919,-313.65340755,0.00046,120]
[394347875,1763478826949,-2923.66,0.00046,30]
[394347876,1763478826983,-1392.83,0.00046054,120]
[394347877,1763478827016,-398.04,0.00046086,120]
[394347878,1763478827049,-440.0,0.00046095,30]
[394347879,1763478827079,-151.0,0.000461,120]
[394347880,1763478827116,-150.0,0.00046195,120]
[394347881,1763478827147,-153.0,0.000462,120]
[394347882,1763478827178,-2339.96269,0.0004622,31]
[394347883,1763478827213,-1392.83,0.00046328,120]
[394347884,1763478827245,-700.0,0.00046398,30]
[394347885,1763478827276,-199.68,0.000464,30]
[394347886,1763478827306,-5014.56724821,0.0004649,120]
[394347887,1763478827333,-700.0,0.00046514,30]
[394347888,1763478827366,-1393.01,0.00046602,120]
[394347889,1763478827397,-153.0,0.000467,120]
[394347890,1763478827427,-151.0,0.000468,120]
[394347891,1763478827457,-207.6,0.00046838,120]
[394347892,1763478827642,-253.26111218,0.000469,120]
[394347893,1763478827673,-25000.0,0.00047,120]
[394347894,1763478827702,-1003.0,0.00047,60]
[394347895,1763478827734,-1639.0,0.00047,120]
[394347896,1763478827765,-153.0,0.000472,120]
[394347897,1763478827796,-191.59,0.0004726,120]
[394347898,1763478827826,-229.01843426,0.000473,120]
[394347899,1763478827860,-2918.67868844,0.000474,120]
[394347900,1763478827891,-232.63159685,0.000474,120]
[394347901,1763478827921,-247.28873876,0.000474,120]
[394347902,1763478827950,-197.5379306,0.000474,120]
[394347903,1763478827980,-151.0,0.000474,120]
[394347904,1763478828010,-180.65798708,0.000474,120]
[394347905,1763478828040,-196.34593636,0.000474,120]
[394347906,1763478828071,-268.41403446,0.000474,120]
[394347907,1763478828104,-207.33474391,0.000474,120]
[394347908,1763478828136,-200.91004585,0.000474,120]
[394347909,1763478828167,-175.400081,0.000474,120]
[394347910,1763478828196,-25000.0,0.000475,120]
[394347911,1763478828226,-101900.0,0.000475,36]
[394347912,1763478828256,-500.0,0.00047726,30]
[394347913,1763478828286,-500.0,0.00047726,30]
[394347914,1763478828316,-500.0,0.00047726,30]
[394347915,1763478828346,-153.0,0.000478,120]
[394347916,1763478828381,-150.0,0.00047954,120]
[394347917,1763478828413,-500.0,0.00048,30]
[394347918,1763478828443,-876.19,0.00048,30]
[394347919,1763478828477,-200.0,0.00048,120]
[394347920,1763478828507,-1000.0,0.00048,120]
[394347921,1763478828537,-25000.0,0.00048,120]
[394347922,1763478828570,-100000.0,0.00048,34]
[394347923,1763478828601,-278.95139981,0.00048,120]
[394347924,1763478828637,-313.65340755,0.00048,120]
[394347925,1763478828671,-150.0,0.00048,120]
[394347926,1763478828702,-301.44547763,0.00048,120]
[394347927,1763478828733,-310.68234808,0.00048,120]
[394347928,1763478828764,-151.0,0.000481,120]
[394347929,1763478828795,-500.0,0.00048274,30]
[394347930,1763478828827,-153.0,0.000483,120]
[394347931,1763478828857,-25000.0,0.000485,120]
[394347932,1763478828898,-100000.0,0.000485,35]
[394347933,1763478828930,-70000.0,0.0004853,120]
[394347934,1763478828960,-500.0,0.00048548,30]
[394347935,1763478828993,-2918.67868844,0.000488,120]
[394347936,1763478829025,-232.63159685,0.000488,120]
[394347937,1763478829058,-247.28873876,0.000488,120]
[394347938,1763478829090,-197.5379306,0.000488,120]
[394347939,1763478829122,-151.0,0.000488,120]
[394347940,1763478829152,-510.41900511,0.000488,60]
[394347941,1763478829184,-500.0,0.00048822,30]
[394347942,1763478829217,-153.0,0.000489,120]
[394347943,1763478829249,-180.65798708,0.000489,120]
[394347944,1763478829280,-196.34593636,0.000489,120]
[394347945,1763478829310,-25000.0,0.00049,120]
[394347946,1763478829340,-50000.0,0.00049,33]
[394347947,1763478829370,-1000.0,0.00049,60]
[394347948,1763478829402,-811.12827626,0.00049,120]
[394347949,1763478829433,-100000.0,0.00049,36]
[394347950,1763478829464,-445.1802467,0.00049,120]
[394347951,1763478829497,-378.19186702,0.00049,120]
[394347952,1763478829530,-50075.87329252,0.00049,120]
[394347953,1763478829561,-500.0,0.00049096,30]
[394347954,1763478829591,-388.06,0.000493,120]
[394347955,1763478829622,-151.0,0.000493,48]
[394347956,1763478829657,-1312.34,0.00049333,120]
[394347957,1763478829690,-500.0,0.0004937,60]
[394347958,1763478829724,-153.0,0.000494,120]
[394347959,1763478829757,-360.0,0.000495,120]
[394347960,1763478829790,-25000.0,0.000495,120]
[394347961,1763478829822,-4200.0,0.000495,34]
[394347962,1763478829854,-100000.0,0.000495,36]
[394347963,1763478829888,-151.0,0.000495,120]
[394347964,1763478829920,-150.0,0.00049501,120]
[394347965,1763478829952,-500.0,0.00049644,60]
[394347966,1763478829985,-1060.09004626,0.000499,120]
[394347967,1763478830019,-500.0,0.00049918,60]
[394347968,1763478830050,-150.0,0.0004999,120]
[394347969,1763478830090,-271.1974714,0.0004999,120]
[394347970,1763478830121,-405.98056815,0.0004999,120]
[394347971,1763478830152,-1000.0,0.00049999,120]
[394347972,1763478830186,-451.53707179,0.00049999,120]
[394347973,1763478830220,-417.62864709,0.00049999,120]
[394347974,1763478830252,-500.0,0.00049999,120]
[394347975,1763478830283,-401.91113539,0.00049999,120]
[394347976,1763478830315,-383.26920988,0.00049999,120]
[394347977,1763478830346,-435.04970665,0.00049999,120]
[394347978,1763478830379,-500.0,0.00049999,120]
[394347979,1763478830413,-352.81453763,0.00049999,120]
[394347980,1763478830448,-50000.0,0.0005,50]
[394347981,1763478830479,-210.11,0.0005,120]
[394347982,1763478830509,-200.0,0.0005,120]
[394347983,1763478830542,-465.88209129,0.0005,120]
[394347984,1763478830573,-200.0,0.0005,120]
[394347985,1763478830603,-368.0,0.0005,120]
[394347986,1763478830636,-243.113,0.0005,120]
[394347987,1763478830668,-200.0,0.0005,120]
[394347988,1763478830700,-1000.0,0.0005,120]
[394347989,1763478830731,-25000.0,0.0005,120]
[394347990,1763478830764,-25000.0,0.0005,120]
[394347991,1763478830795,-50000.0,0.0005,35]
[394347992,1763478830825,-4876.89864621,0.0005,120]
[394347993,1763478830855,-651.6516889,0.0005,30]
[394347994,1763478830891,-200.0,0.0005,80]
[394347995,1763478831053,-996.26982746,0.0005,30]
[394347996,1763478831086,-158.84128324,0.0005,120]
[394347997,1763478831119,-153.0,0.0005,120]
[394347998,1763478831149,-1391.5545719,0.0005,30]
[394347999,1763478831181,-1532.99941437,0.0005,120]
[394348000,1763478831213,-833.33618387,0.0005,120]
[394348001,1763478831244,-476.18029443,0.0005,120]
[394348002,1763478831276,-500.0,0.00050192,60]
[394348003,1763478831307,-151.0,0.000502,120]
[394348004,1763478831337,-907.0,0.00050216,120]
[394348005,1763478831370,-2918.67868844,0.000503,120]
[394348006,1763478831401,-247.28873876,0.000503,120]
[394348007,1763478831430,-232.63159685,0.000503,120]
[394348008,1763478831460,-197.5379306,0.000503,120]
[394348009,1763478831491,-180.65798708,0.000503,120]
[394348010,1763478831523,-500.0,0.00050466,60]
[394348011,1763478831552,-25000.0,0.000505,120]
[394348012,1763478831583,-153.0,0.000505,120]
[394348013,1763478831615,-151.0,0.000509,120]
[394348014,1763478831645,-1000.0,0.00050999,120]
[394348015,1763478831676,-246.88271847,0.00050999,120]
[394348016,1763478831707,-255.74660808,0.00050999,120]
[394348017,1763478831739,-511.3134587,0.00051,60]
[394348018,1763478831770,-150.0,0.00051,120]
[394348019,1763478831802,-25000.0,0.00051,120]
[394348020,1763478831833,-50000.0,0.00051,36]
[394348021,1763478831868,-1639.0,0.00051,120]
[394348022,1763478831898,-150.0,0.00051,120]
[394348023,1763478831929,-153.0,0.00051,120]
[394348024,1763478831959,-557.90279962,0.00051,120]
[394348025,1763478831991,-627.30681509,0.00051,120]
[394348026,1763478832022,-398.04,0.00051133,120]
[394348027,1763478832052,-150.0,0.00051178,120]
[394348028,1763478832083,-25000.0,0.000513,120]
[394348029,1763478832115,-1509.24951381,0.0005132,34]
[394348030,1763478832144,-25000.0,0.000515,120]
[394348031,1763478832174,-153.0,0.000516,120]
[394348032,1763478832206,-151.0,0.000516,120]
[394348033,1763478832236,-5580.90701602,0.0005162,35]
[394348034,1763478832265,-3588.2111429,0.00051625,33]
[394348035,1763478832296,-150.0,0.00051689,120]
[394348036,1763478832327,-2918.67868844,0.000518,120]
[394348037,1763478832357,-247.28873876,0.000518,120]
[394348038,1763478832390,-232.63159685,0.000518,120]
[394348039,1763478832420,-197.5379306,0.000518,120]
[394348040,1763478832449,-180.65798708,0.000518,120]
[394348041,1763478832479,-150.0,0.0005187,120]
[394348042,1763478832508,-383.67904831,0.00051954,90]
[394348043,1763478832537,-1000.0,0.00051999,120]
[394348044,1763478832567,-150.0,0.00052,120]
[394348045,1763478832596,-200.0,0.00052,120]
[394348046,1763478832625,-25000.0,0.00052,120]
[394348047,1763478832653,-1376.89812497,0.00052,120]
[394348048,1763478832683,-250.0,0.00052055,30]
[394348049,1763478832713,-250.0,0.00052055,30]
[394348050,1763478832745,-250.0,0.00052055,30]
[394348051,1763478832775,-250.0,0.00052055,30]
[394348052,1763478832804,-250.0,0.00052055,30]
[394348053,1763478832834,-220.27948894,0.00052055,30]
[394348054,1763478832865,-200.0,0.00052055,30]
[394348055,1763478832897,-151.0,0.00052055,30]
[394348056,1763478832929,-151.0,0.00052055,30]
[394348057,1763478832962,-207.4,0.00052055,30]
[394348058,1763478832995,-255.83667675,0.00052055,30]
[394348059,1763478833029,-151.0,0.00052055,30]
[394348060,1763478833062,-151.0,0.00052055,30]
[394348061,1763478833094,-151.0,0.00052055,30]
[394348062,1763478833136,-151.0,0.00052055,30]
[394348063,1763478833170,-151.0,0.00052055,30]
[394348064,1763478833203,-151.0,0.00052055,30]
[394348065,1763478833236,-151.0,0.00052055,30]
[394348066,1763478833268,-151.0,0.00052055,30]
[394348067,1763478833302,-151.0,0.00052055,30]
[394348068,1763478833338,-180.94508946,0.00052055,30]
[394348069,1763478833375,-151.0,0.00052055,30]
[394348070,1763478833409,-151.0,0.00052055,30]
[394348071,1763478833444,-151.0,0.00052055,30]
[394348072,1763478833478,-151.0,0.00052055,30]
[394348073,1763478833512,-151.0,0.00052055,30]
[394348074,1763478833544,-151.0,0.00052055,30]
[394348075,1763478833577,-151.0,0.00052055,30]
[394348076,1763478833609,-151.0,0.00052055,30]
[394348077,1763478833643,-151.0,0.00052055,30]
[394348078,1763478833676,-151.0,0.00052055,30]
[394348079,1763478833710,-500.0,0.00052055,30]
[394348080,1763478833744,-500.0,0.00052055,30]
[394348081,1763478833777,-500.0,0.00052055,30]
[394348082,1763478833813,-500.0,0.00052055,30]
[394348083,1763478833847,-500.0,0.00052055,30]
[394348084,1763478833882,-500.0,0.00052055,30]
[394348085,1763478833916,-500.0,0.00052055,30]
[394348086,1763478833950,-500.0,0.00052055,30]
[394348087,1763478833984,-500.0,0.00052055,30]
[394348088,1763478834018,-500.0,0.00052055,30]
[394348089,1763478834052,-500.0,0.00052055,30]
[394348090,1763478834086,-500.0,0.00052055,30]
[394348091,1763478834124,-500.0,0.00052055,30]
[394348092,1763478834157,-500.0,0.00052055,30]
[394348093,1763478834194,-500.0,0.00052055,30]
[394348094,1763478834227,-500.0,0.00052055,30]
[394348095,1763478834260,-500.0,0.00052055,30]
[394348096,1763478834293,-531.64396386,0.00052055,30]
[394348097,1763478834538,537.2,0.00046054,120]
[394348098,1763478834582,537.2,0.00046328,120]
[394348099,1763478834621,150.0,0.00041719,30]
[394348100,1763478834675,537.28,0.00046602,120]
[394348101,1763478834791,573.28,0.00043835,120]
[394348102,1763478834852,174.75,0.00041633,120]
[394348103,1763478834915,573.28,0.00044109,120]
[394348104,1763478834975,174.75,0.00041633,120]
[394348105,1763478835024,573.28,0.00044383,120]